[Event "Turkish Second League 2019"]
[Site "Konya"]
[Date "2019.07.25"]
[Round "6"]
[White "Aydin, Ersin"]
[Black "Kisadere, Kutay"]
[Result "1/2-1/2"]
[ECO "E03"]
[WhiteElo "1908"]
[BlackElo "1770"]
[Annotator "NA"]
[PlyCount "114"]
[EventDate "2019.07.22"]
[EventType "team-tourn"]
[EventCountry "TUR"]
[SourceTitle "playchess.com"]
[Source "ChessBase"]
[SourceQuality "1"]
[TimeControl "5400+30"]

1. d4 {[%emt 0:00:30]} d5 {[%emt 0:00:30]} 2. c4 {[%emt 0:00:30]} e6 {[%emt 0:00:00]} 3. Nf3 {[%emt 0:00:00]} Nf6 {[%emt 0:00:00]} 4. g3 {[%emt 0:00:00]} dxc4 {[%emt 0:00:30]} 5. Qa4+ {[%emt 0:00:30]} Nbd7 {[%emt 0:07:30]} 6. Qxc4 {[%emt 0:00:00]} a6 {[%emt 0:00:30]} 7. Bg2 {[%emt 0:01:00]} b5 {[%emt 0:00:30]} 8. Qc2 {[%emt 0:01:30]} Bb7 {[%emt 0:00:30]} 9. O-O {[%emt 0:05:30]} c5 {[%emt 0:00:30]} 10. dxc5 {[%emt 0:21:30]} Bxc5 {[%emt 0:05:30]} 11. Nc3 {[%emt 0:03:30]} Rc8 {[%emt 0:03:30]} 12. Qb3 {[%emt 0:06:30]} Qb6 {[%emt 0:03:30]} 13. Bf4 {[%emt 0:05:30]} O-O {[%emt 0:04:30]} 14. Rad1 {[%emt 0:03:30]} Nd5 {[%emt 0:23:30]} 15. Nxd5 {[%emt 0:16:30]} Bxd5 {[%emt 0:00:30]} 16. Qd3 {[%emt 0:00:00]} Nf6 {[%emt 0:01:30]} 17. Ne5 {[%emt 0:04:00]} Bxg2 {[%emt 0:04:30]} 18. Kxg2 {[%emt 0:00:30]} Rfd8 {[%emt 0:01:30]} 19. Qf3 {[%emt 0:00:30]} Bd4 {[%emt 0:01:30]} 20. Nd3 {[%emt 0:04:30]} Nd5 {[%emt 0:15:30]} 21. Rc1 {[%emt 0:01:30]} Bf6 {[%emt 0:07:49]} 22. Be5 {[%emt 0:04:57]} Be7 {[%emt 0:07:19]} 23. Rfd1 {[%emt 0:05:00]} h6 {[%emt 0:02:36]} 24. h4 {[%emt 0:07:19]} a5 {[%emt 0:07:01]} 25. Nf4 {[%emt 0:03:17]} Nxf4+ {[%emt 0:00:11]} 26. Bxf4 {[%emt 0:00:00]} Bf6 {[%emt 0:00:59]} 27. Rxd8+ {[%emt 0:00:13]} Qxd8 {[%emt 0:00:24]} 28. Rxc8 {[%emt 0:02:33]} Qxc8 {[%emt 0:00:01]} 29. b3 {[%emt 0:00:19]} a4 {[%emt 0:00:47]} 30. Qd3 {[%emt 0:01:00]} Qc6+ {[%emt 0:00:25]} 31. e4 {[%emt 0:00:34]} Be7 {[%emt 0:00:45]} 32. Kg1 {[%emt 0:01:21]} axb3 {[%emt 0:01:02]} 33. axb3 {[%emt 0:00:14]} Bf6 {[%emt 0:00:27]} 34. Be3 {[%emt 0:00:24]} Be7 {[%emt 0:00:35]} 35. Kf1 {[%emt 0:00:23]} Bb4 {[%emt 0:00:34]} 36. Qd8+ {[%emt 0:00:47]} Kh7 {[%emt 0:00:01]} 37. Qd3 {[%emt 0:00:00]} Be7 {[%emt 0:00:29]} 38. Bd2 {[%emt 0:00:02]} g6 {[%emt 0:00:43]} 39. Bc3 {[%emt 0:00:28]} f6 {[%emt 0:00:41]} 40. Ke2 {[%emt 0:00:57]} h5 {[%emt 0:00:06]} 41. Bd2 {[%emt 0:00:37]} Kg7 {[%emt 0:00:22]} 42. Qe3 {[%emt 0:00:45]} Kf7 {[%emt 0:00:05]} 43. f3 {[%emt 0:00:03]} Qc7 {[%emt 0:00:27]} 44. f4 {[%emt 0:01:25]} Qc6 {[%emt 0:00:38]} 45. Qd3 {[%emt 0:01:16]} Bc5 {[%emt 0:00:58]} 46. Be3 {[%emt 0:00:14]} Bxe3 {[%emt 0:00:50]} 47. Kxe3 {[%emt 0:00:21]} Qc5+ {[%emt 0:00:27]} 48. Qd4 {[%emt 0:00:58]} Qc1+ {[%emt 0:00:11]} 49. Qd2 {[%emt 0:00:57]} Qg1+ {[%emt 0:00:07]} 50. Kf3 {[%emt 0:00:14]} Qh1+ {[%emt 0:01:04]} 51. Ke3 {[%emt 0:00:13]} Qg1+ {[%emt 0:00:26]} 52. Kf3 {[%emt 0:00:07]} Qa7 {[%emt 0:00:52]} 53. Qd6 {[%emt 0:00:17]} Qb7 {[%emt 0:00:14]} 54. Ke3 {[%emt 0:00:34]} f5 {[%emt 0:00:47]} 55. exf5 {[%emt 0:00:47]} gxf5 {[%emt 0:00:06]} 56. Qd3 {[%emt 0:00:43]} Qc6 {[%emt 0:00:14]} 57. Kd4 {[%emt 0:00:38]} Qd5+ {[%emt 0:00:30]} 1/2-1/2

[Event "Turkish Second League 2019"]
[Site "Konya"]
[Date "2019.07.25"]
[Round "6"]
[White "Ozsakallioglu, Akin"]
[Black "Temizkan, Denizcan"]
[Result "1/2-1/2"]
[ECO "C49"]
[WhiteElo "1901"]
[BlackElo "2202"]
[Annotator "NA"]
[PlyCount "141"]
[EventDate "2019.07.22"]
[EventType "team-tourn"]
[EventCountry "TUR"]
[SourceTitle "playchess.com"]
[Source "ChessBase"]
[SourceQuality "1"]
[TimeControl "5400+30"]

1. e4 {[%emt 0:00:30]} e5 {[%emt 0:00:30]} 2. Nf3 {[%emt 0:00:30]} Nc6 {[%emt 0:00:00]} 3. Nc3 {[%emt 0:00:00]} Nf6 {[%emt 0:00:00]} 4. Bb5 {[%emt 0:00:00]} Bb4 {[%emt 0:00:30]} 5. O-O {[%emt 0:00:00]} O-O {[%emt 0:00:30]} 6. d3 {[%emt 0:00:00]} d6 {[%emt 0:00:30]} 7. Bg5 {[%emt 0:00:00]} Ne7 {[%emt 0:00:30]} 8. Nh4 {[%emt 0:00:00]} c6 {[%emt 0:01:30]} 9. Bc4 {[%emt 0:10:30]} d5 {[%emt 0:08:30]} 10. Bb3 {[%emt 0:00:30]} Qd6 {[%emt 0:02:30]} 11. f4 {[%emt 0:11:30]} Bxc3 {[%emt 0:14:30]} 12. bxc3 {[%emt 0:01:30]} dxe4 {[%emt 0:00:30]} 13. fxe5 {[%emt 0:03:30]} Qxe5 {[%emt 0:00:30]} 14. Bxf6 {[%emt 0:00:30]} gxf6 {[%emt 0:00:00]} 15. dxe4 {[%emt 0:01:30]} Ng6 {[%emt 0:15:00]} 16. Nxg6 {[%emt 0:00:30]} hxg6 {[%emt 0:00:30]} 17. Qd4 {[%emt 0:00:30]} Kg7 {[%emt 0:07:30]} 18. Qxe5 {[%emt 0:00:30]} fxe5 {[%emt 0:00:00]} 19. Rad1 {[%emt 0:00:30]} a5 {[%emt 0:01:00]} 20. a4 {[%emt 0:01:30]} Bg4 {[%emt 0:05:30]} 21. Rd6 {[%emt 0:02:30]} Rae8 {[%emt 0:01:30]} 22. h3 {[%emt 0:00:30]} Bc8 {[%emt 0:01:30]} 23. Rdf6 {[%emt 0:04:30]} Bf5 {[%emt 0:07:30]} 24. Rd6 {[%emt 0:00:30]} Bc8 {[%emt 0:03:30]} 25. g4 {[%emt 0:09:30]} f5 {[%emt 0:00:30]} 26. gxf5 {[%emt 0:05:30]} gxf5 {[%emt 0:01:30]} 27. Kh2 {[%emt 0:03:30]} fxe4 {[%emt 0:04:30]} 28. Rg1+ {[%emt 0:00:30]} Kh7 {[%emt 0:00:00]} 29. Rg5 {[%emt 0:00:30]} Rf5 {[%emt 0:04:13]} 30. Rgg6 {[%emt 0:01:30]} Rh5 {[%emt 0:01:18]} 31. Rg3 {[%emt 0:00:30]} Rf8 {[%emt 0:00:16]} 32. Kg2 {[%emt 0:00:30]} Rhf5 {[%emt 0:04:07]} 33. Rgg6 {[%emt 0:05:30]} Rf2+ {[%emt 0:05:12]} 34. Kg1 {[%emt 0:00:30]} Rf1+ {[%emt 0:00:08]} 35. Kh2 {[%emt 0:00:30]} R8f2+ {[%emt 0:00:21]} 36. Kg3 {[%emt 0:00:30]} Rf3+ {[%emt 0:01:53]} 37. Kh2 {[%emt 0:00:30]} R3f2+ {[%emt 0:02:38]} 38. Kg3 {[%emt 0:00:30]} Rg1+ {[%emt 0:01:11]} 39. Kxf2 {[%emt 0:00:30]} Rxg6 {[%emt 0:00:03]} 40. Rd8 {[%emt 0:00:00]} Bxh3 {[%emt 0:01:22]} 41. Re8 {[%emt 0:00:00]} Rg2+ {[%emt 0:04:16]} 42. Ke3 {[%emt 0:01:30]} Rg3+ {[%emt 0:00:07]} 43. Kf2 {[%emt 0:05:30]} Rf3+ {[%emt 0:00:57]} 44. Ke1 {[%emt 0:00:30]} Rxc3 {[%emt 0:02:26]} 45. Rxe5 {[%emt 0:00:00]} Bg2 {[%emt 0:00:28]} 46. Rxa5 {[%emt 0:01:00]} c5 {[%emt 0:01:26]} 47. Kd2 {[%emt 0:00:30]} Rg3 {[%emt 0:00:26]} 48. Rxc5 {[%emt 0:00:00]} e3+ {[%emt 0:00:00]} 49. Ke2 {[%emt 0:03:00]} Bh3 {[%emt 0:00:00]} 50. Re5 {[%emt 0:00:30]} Bg4+ {[%emt 0:00:02]} 51. Kd3 {[%emt 0:00:30]} e2+ {[%emt 0:00:37]} 52. Kd2 {[%emt 0:00:00]} Rg1 {[%emt 0:00:00]} 53. Rxe2 {[%emt 0:01:00]} Bxe2 {[%emt 0:00:23]} 54. Kxe2 {[%emt 0:00:00]} Rg3 {[%emt 0:00:00]} 55. Kd2 {[%emt 0:00:00]} Kg7 {[%emt 0:00:11]} 56. Kc1 {[%emt 0:00:30]} Kf6 {[%emt 0:00:33]} 57. Kb2 {[%emt 0:00:00]} Ke5 {[%emt 0:02:26]} 58. Ka3 {[%emt 0:00:00]} Kd4 {[%emt 0:00:30]} 59. Kb4 {[%emt 0:00:30]} Rg5 {[%emt 0:00:48]} 60. c3+ {[%emt 0:05:30]} Kd3 {[%emt 0:00:39]} 61. Bc4+ {[%emt 0:00:30]} Ke4 {[%emt 0:00:00]} 62. Bb5 {[%emt 0:00:00]} Ke3 {[%emt 0:00:35]} 63. a5 {[%emt 0:00:00]} Rg6 {[%emt 0:00:14]} 64. Bd7 {[%emt 0:01:30]} Rg7 {[%emt 0:01:13]} 65. Bb5 {[%emt 0:00:00]} Rg6 {[%emt 0:00:38]} 66. Bd7 {[%emt 0:00:00]} Rg7 {[%emt 0:00:07]} 67. Be6 {[%emt 0:02:30]} Kf4 {[%emt 0:00:37]} 68. Bd5 {[%emt 0:02:30]} Ke5 {[%emt 0:00:05]} 69. c4 {[%emt 0:00:00]} Kd6 {[%emt 0:00:28]} 70. Kb5 {[%emt 0:00:00]} Kc7 {[%emt 0:00:11]} 71. a6 {[%emt 0:00:00]} 1/2-1/2

[Event "Turkish Second League 2019"]
[Site "Konya"]
[Date "2019.07.25"]
[Round "6"]
[White "Isik, Recep"]
[Black "Bozkurt, Serkan"]
[Result "0-1"]
[ECO "C07"]
[WhiteElo "1893"]
[BlackElo "1689"]
[Annotator "NA"]
[PlyCount "114"]
[EventDate "2019.07.22"]
[EventType "team-tourn"]
[EventCountry "TUR"]
[SourceTitle "playchess.com"]
[Source "ChessBase"]
[SourceQuality "1"]
[TimeControl "5400+30"]

1. e4 {[%emt 0:00:30]} e6 {[%emt 0:00:30]} 2. d4 {[%emt 0:00:30]} d5 {[%emt 0:00:00]} 3. Nd2 {[%emt 0:00:00]} c5 {[%emt 0:00:00]} 4. c3 {[%emt 0:00:00]} cxd4 {[%emt 0:01:30]} 5. cxd4 {[%emt 0:00:00]} Nc6 {[%emt 0:00:00]} 6. Ngf3 {[%emt 0:02:00]} Nf6 {[%emt 0:01:00]} 7. e5 {[%emt 0:01:30]} Nd7 {[%emt 0:00:00]} 8. b3 {[%emt 0:02:30]} f6 {[%emt 0:05:00]} 9. Bb2 {[%emt 0:02:30]} fxe5 {[%emt 0:04:30]} 10. Nxe5 {[%emt 0:00:00]} Ndxe5 {[%emt 0:01:30]} 11. dxe5 {[%emt 0:00:00]} Qg5 {[%emt 0:00:30]} 12. g3 {[%emt 0:17:30]} Bb4 {[%emt 0:03:30]} 13. f4 {[%emt 0:16:30]} Qg6 {[%emt 0:02:30]} 14. Qb1 {[%emt 0:07:30]} Qh5 {[%emt 0:12:30]} 15. Qd3 {[%emt 0:08:30]} Bd7 {[%emt 0:11:30]} 16. Bg2 {[%emt 0:08:30]} Rc8 {[%emt 0:19:30]} 17. O-O {[%emt 0:00:30]} Bc5+ {[%emt 0:02:30]} 18. Kh1 {[%emt 0:00:30]} Nb4 {[%emt 0:00:30]} 19. Qf3 {[%emt 0:01:30]} Qg6 {[%emt 0:01:30]} 20. a3 {[%emt 0:20:28]} Nc2 {[%emt 0:09:30]} 21. Rac1 {[%emt 0:01:38]} O-O {[%emt 0:02:30]} 22. b4 {[%emt 0:03:35]} Bb6 {[%emt 0:03:00]} 23. Bh3 {[%emt 0:01:13]} Ne3 {[%emt 0:02:58]} 24. Rfe1 {[%emt 0:03:34]} d4 {[%emt 0:01:51]} 25. Qxb7 {[%emt 0:00:36]} Qf7 {[%emt 0:10:24]} 26. Ne4 {[%emt 0:00:42]} Bc6 {[%emt 0:02:12]} 27. Qxf7+ {[%emt 0:00:02]} Kxf7 {[%emt 0:00:10]} 28. Bg2 {[%emt 0:01:08]} Ke7 {[%emt 0:00:21]} 29. Kg1 {[%emt 0:00:29]} d3 {[%emt 0:00:28]} 30. Nc5 {[%emt 0:00:24]} Nxg2 {[%emt 0:02:13]} 31. Red1 {[%emt 0:00:03]} Ne3 {[%emt 0:00:02]} 32. Rxd3 {[%emt 0:00:07]} Nf5 {[%emt 0:00:56]} 33. Kf2 {[%emt 0:01:07]} Rfd8 {[%emt 0:00:37]} 34. Rxd8 {[%emt 0:00:13]} Rxd8 {[%emt 0:00:19]} 35. Ke1 {[%emt 0:00:24]} Bd5 {[%emt 0:00:52]} 36. a4 {[%emt 0:00:19]} Rc8 {[%emt 0:00:25]} 37. Kd2 {[%emt 0:00:41]} Bxc5 {[%emt 0:00:31]} 38. bxc5 {[%emt 0:00:20]} Rb8 {[%emt 0:00:35]} 39. Bc3 {[%emt 0:00:37]} Kd7 {[%emt 0:00:30]} 40. g4 {[%emt 0:00:00]} Ne7 {[%emt 0:00:19]} 41. h4 {[%emt 0:01:34]} Ng6 {[%emt 0:01:05]} 42. f5 {[%emt 0:00:08]} exf5 {[%emt 0:00:00]} 43. gxf5 {[%emt 0:00:29]} Nxh4 {[%emt 0:00:00]} 44. e6+ {[%emt 0:00:41]} Ke7 {[%emt 0:00:00]} 45. Bxg7 {[%emt 0:00:43]} Nxf5 {[%emt 0:00:50]} 46. Be5 {[%emt 0:00:17]} Rd8 {[%emt 0:00:07]} 47. Bc7 {[%emt 0:00:25]} Rg8 {[%emt 0:00:48]} 48. Kc3 {[%emt 0:00:58]} Rc8 {[%emt 0:00:51]} 49. Rd1 {[%emt 0:00:31]} Bxe6 {[%emt 0:00:43]} 50. Bf4 {[%emt 0:00:32]} Rxc5+ {[%emt 0:00:22]} 51. Kb2 {[%emt 0:00:24]} Rc4 {[%emt 0:00:23]} 52. Bg5+ {[%emt 0:00:07]} Kf7 {[%emt 0:00:42]} 53. Ka3 {[%emt 0:00:16]} Rg4 {[%emt 0:00:20]} 54. Bc1 {[%emt 0:00:40]} Ke7 {[%emt 0:01:23]} 55. Rh1 {[%emt 0:00:04]} Bg8 {[%emt 0:00:04]} 56. a5 {[%emt 0:00:29]} Nd6 {[%emt 0:00:31]} 57. a6 {[%emt 0:00:21]} Nb5+ {[%emt 0:00:27]} 0-1

[Event "Turkish Second League 2019"]
[Site "Konya"]
[Date "2019.07.25"]
[Round "6"]
[White "Catal, Uktenur"]
[Black "Sade, Defne"]
[Result "1/2-1/2"]
[ECO "D36"]
[WhiteElo "1885"]
[BlackElo "1897"]
[Annotator "NA"]
[PlyCount "63"]
[EventDate "2019.07.22"]
[EventType "team-tourn"]
[EventCountry "TUR"]
[SourceTitle "playchess.com"]
[Source "ChessBase"]
[SourceQuality "1"]
[TimeControl "5400+30"]

1. d4 d5 2. c4 e6 3. Nc3 Nf6 4. cxd5 exd5 5. Bg5 Be7 6. e3 c6 7. Bd3 Nbd7 8. Nge2 Nh5 9. Bxe7 Qxe7 10. Qc2 g6 11. O-O-O Nb6 12. Kb1 Ng7 13. Nf4 Be6 14. Rhe1 O-O 15. h3 Rfc8 16. Rc1 a5 17. Nxe6 Nxe6 18. f4 Nc4 19. f5 Nc7 20. Bxc4 dxc4 21. Na4 Ra6 22. Nc5 Rb6 23. fxg6 hxg6 24. Qxc4 Rb4 25. Qc2 Nb5 26. Ka1 Nd6 27. b3 Ra8 {[%emt 1:21:30]} 28. Nd3 {[%emt 1:30:36]} Rb6 29. Nc5 Rb4 30. Nd3 Rb6 31. Nb2 Rb4 32. Nd3 1/2-1/2

[Event "Turkish Second League 2019"]
[Site "Konya"]
[Date "2019.07.25"]
[Round "6"]
[White "Bicer, Atakan Mert"]
[Black "Isik, Alparslan"]
[Result "1-0"]
[ECO "E97"]
[WhiteElo "1870"]
[BlackElo "2293"]
[Annotator "NA"]
[PlyCount "89"]
[EventDate "2019.07.22"]
[EventType "team-tourn"]
[EventCountry "TUR"]
[SourceTitle "playchess.com"]
[Source "ChessBase"]
[SourceQuality "1"]
[TimeControl "5400+30"]

1. Nf3 {[%emt 0:00:30]} g6 {[%emt 0:00:30]} 2. c4 {[%emt 0:00:00]} Bg7 {[%emt 0:00:30]} 3. Nc3 {[%emt 0:00:00]} d6 {[%emt 0:00:00]} 4. d4 {[%emt 0:00:30]} Nf6 {[%emt 0:00:00]} 5. e4 {[%emt 0:00:30]} O-O {[%emt 0:00:30]} 6. Be2 {[%emt 0:00:00]} e5 {[%emt 0:00:30]} 7. O-O {[%emt 0:00:00]} Nc6 {[%emt 0:00:30]} 8. Be3 {[%emt 0:00:30]} Ng4 {[%emt 0:01:30]} 9. Bg5 {[%emt 0:00:00]} f6 {[%emt 0:03:30]} 10. Bc1 {[%emt 0:00:00]} exd4 {[%emt 0:01:30]} 11. Nxd4 {[%emt 0:02:30]} Nxd4 {[%emt 0:00:00]} 12. Qxd4 {[%emt 0:06:30]} f5 {[%emt 0:11:00]} 13. Qd5+ {[%emt 0:05:30]} Kh8 {[%emt 0:00:30]} 14. Bxg4 {[%emt 0:00:30]} fxg4 {[%emt 0:00:00]} 15. Bg5 {[%emt 0:00:30]} Qe8 {[%emt 0:01:00]} 16. Qd2 {[%emt 0:05:30]} Be6 {[%emt 0:05:30]} 17. b3 {[%emt 0:00:30]} Be5 {[%emt 0:01:30]} 18. Rad1 {[%emt 0:03:30]} a6 {[%emt 0:04:30]} 19. Be3 {[%emt 0:24:30]} Kg8 {[%emt 0:19:30]} 20. Ne2 {[%emt 0:06:30]} Bd7 {[%emt 0:14:30]} 21. Rfe1 {[%emt 0:16:30]} Qf7 {[%emt 0:05:30]} 22. Bd4 {[%emt 0:05:30]} Rae8 {[%emt 0:06:30]} 23. Nc3 {[%emt 0:01:30]} Bc6 {[%emt 0:00:30]} 24. c5 {[%emt 0:02:12]} Bxd4 {[%emt 0:09:15]} 25. Qxd4 {[%emt 0:00:07]} dxc5 {[%emt 0:00:15]} 26. Qxc5 {[%emt 0:00:08]} Qf4 {[%emt 0:00:22]} 27. Qe3 {[%emt 0:02:46]} Qf7 {[%emt 0:04:35]} 28. Qd4 {[%emt 0:02:10]} h5 {[%emt 0:00:54]} 29. Qc4 {[%emt 0:02:57]} Re6 {[%emt 0:00:52]} 30. Rd2 {[%emt 0:00:45]} h4 {[%emt 0:01:48]} 31. Re3 {[%emt 0:00:53]} Rfe8 {[%emt 0:01:48]} 32. Rde2 {[%emt 0:01:26]} b5 {[%emt 0:04:23]} 33. Qc5 {[%emt 0:00:37]} Qf6 {[%emt 0:00:21]} 34. e5 {[%emt 0:00:52]} Qf5 {[%emt 0:00:29]} 35. Ne4 {[%emt 0:02:07]} Rxe5 {[%emt 0:02:27]} 36. Qxc6 {[%emt 0:00:08]} Kg7 {[%emt 0:00:21]} 37. Qxc7+ {[%emt 0:00:20]} R8e7 {[%emt 0:00:04]} 38. Qc2 {[%emt 0:00:43]} Qf4 {[%emt 0:01:00]} 39. g3 {[%emt 0:01:11]} hxg3 {[%emt 0:00:05]} 40. fxg3 {[%emt 0:00:03]} Qf5 {[%emt 0:00:12]} 41. Qc3 {[%emt 0:00:58]} Kh6 {[%emt 0:00:21]} 42. Nf2 {[%emt 0:00:38]} Rc5 {[%emt 0:00:41]} 43. Qd2 {[%emt 0:00:38]} Rxe3 {[%emt 0:01:19]} 44. Qxe3+ {[%emt 0:00:01]} Kh5 {[%emt 0:00:00]} 45. Qe4 {[%emt 0:00:22]} 1-0

[Event "Turkish Second League 2019"]
[Site "Konya"]
[Date "2019.07.25"]
[Round "6"]
[White "Bicer, Atakan Mert"]
[Black "Erdogmus, Yagiz Kaan"]
[Result "1-0"]
[ECO "A14"]
[WhiteElo "1870"]
[BlackElo "1744"]
[Annotator "NA"]
[PlyCount "128"]
[EventDate "2019.07.22"]
[EventType "team-tourn"]
[EventCountry "TUR"]
[SourceTitle "playchess.com"]
[Source "ChessBase"]
[SourceQuality "1"]
[TimeControl "5400+30"]

1. c4 {[%emt 0:00:30]} e6 {[%emt 0:00:30]} 2. g3 {[%emt 0:00:00]} Nf6 {[%emt 0:00:30]} 3. Bg2 {[%emt 0:00:00]} Be7 {[%emt 0:00:00]} 4. Nf3 {[%emt 0:00:00]} O-O {[%emt 0:01:00]} 5. b3 {[%emt 0:00:00]} d5 {[%emt 0:00:30]} 6. Bb2 {[%emt 0:00:30]} Nbd7 {[%emt 0:00:30]} 7. O-O {[%emt 0:00:00]} c6 {[%emt 0:01:30]} 8. d3 {[%emt 0:00:00]} a6 {[%emt 0:04:30]} 9. Nbd2 {[%emt 0:00:30]} b5 {[%emt 0:05:30]} 10. Qc2 {[%emt 0:00:00]} Bb7 {[%emt 0:02:30]} 11. e4 {[%emt 0:02:00]} c5 {[%emt 0:11:30]} 12. e5 {[%emt 0:14:30]} Ne8 {[%emt 0:00:30]} 13. h4 {[%emt 0:00:30]} Nb8 {[%emt 0:04:30]} 14. cxd5 {[%emt 0:06:30]} Bxd5 {[%emt 0:01:30]} 15. d4 {[%emt 0:08:30]} Nd7 {[%emt 0:07:30]} 16. Ne4 {[%emt 0:01:30]} Rc8 {[%emt 0:08:30]} 17. Rac1 {[%emt 0:04:30]} Rc7 {[%emt 0:02:30]} 18. Neg5 {[%emt 0:00:30]} g6 {[%emt 0:00:30]} 19. Qe2 {[%emt 0:03:30]} Ng7 {[%emt 0:06:30]} 20. Ne4 {[%emt 0:08:30]} c4 {[%emt 0:12:30]} 21. Nd6 {[%emt 0:07:30]} Nb6 {[%emt 0:01:30]} 22. Ba3 {[%emt 0:01:30]} Nf5 {[%emt 0:03:30]} 23. Bc5 {[%emt 0:00:30]} Nc8 {[%emt 0:02:30]} 24. bxc4 {[%emt 0:02:30]} bxc4 {[%emt 0:01:37]} 25. Nxc4 {[%emt 0:07:30]} Bxc5 {[%emt 0:00:30]} 26. dxc5 {[%emt 0:00:30]} Rxc5 {[%emt 0:00:30]} 27. Ncd2 {[%emt 0:00:30]} Ra5 {[%emt 0:00:23]} 28. Nc4 {[%emt 0:03:30]} Rb5 {[%emt 0:03:23]} 29. Rfd1 {[%emt 0:01:30]} Qe7 {[%emt 0:01:08]} 30. Ng5 {[%emt 0:01:30]} Qa7 {[%emt 0:04:50]} 31. Qg4 {[%emt 0:06:30]} Bxc4 {[%emt 0:05:22]} 32. Rxc4 {[%emt 0:00:30]} Rxe5 {[%emt 0:01:12]} 33. Qf4 {[%emt 0:01:59]} Rc5 {[%emt 0:02:16]} 34. Rxc5 {[%emt 0:00:11]} Qxc5 {[%emt 0:00:10]} 35. Ne4 {[%emt 0:00:05]} Qa5 {[%emt 0:00:29]} 36. g4 {[%emt 0:00:50]} Nxh4 {[%emt 0:01:14]} 37. Qh6 {[%emt 0:00:13]} Qe5 {[%emt 0:01:46]} 38. Qxh4 {[%emt 0:00:38]} Qf4 {[%emt 0:02:39]} 39. Rd8 {[%emt 0:06:11]} Qc1+ {[%emt 0:00:16]} 40. Bf1 {[%emt 0:00:00]} Rxd8 {[%emt 0:01:14]} 41. Qxd8+ {[%emt 0:00:30]} Kg7 {[%emt 0:00:00]} 42. Qd4+ {[%emt 0:00:00]} Kf8 {[%emt 0:00:40]} 43. Qh8+ {[%emt 0:00:23]} Ke7 {[%emt 0:00:15]} 44. Qxh7 {[%emt 0:00:14]} Qf4 {[%emt 0:00:11]} 45. Qh4+ {[%emt 0:00:04]} Kf8 {[%emt 0:00:51]} 46. Qd8+ {[%emt 0:05:48]} Kg7 {[%emt 0:00:04]} 47. Qxc8 {[%emt 0:00:00]} Qxe4 {[%emt 0:00:08]} 48. Qc3+ {[%emt 0:00:02]} Kg8 {[%emt 0:01:08]} 49. f3 {[%emt 0:00:46]} Qb7 {[%emt 0:00:03]} 50. Kg2 {[%emt 0:01:20]} Kh7 {[%emt 0:00:29]} 51. Be2 {[%emt 0:01:42]} Qb6 {[%emt 0:00:55]} 52. a4 {[%emt 0:01:42]} Qd6 {[%emt 0:00:49]} 53. a5 {[%emt 0:00:42]} e5 {[%emt 0:00:46]} 54. Qc4 {[%emt 0:00:13]} Kg7 {[%emt 0:00:37]} 55. Qxa6 {[%emt 0:00:23]} Qd2 {[%emt 0:00:13]} 56. Qb5 {[%emt 0:00:29]} f6 {[%emt 0:00:22]} 57. a6 {[%emt 0:00:46]} Qa2 {[%emt 0:00:07]} 58. Kf2 {[%emt 0:00:00]} Qd2 {[%emt 0:00:38]} 59. Qd3 {[%emt 0:00:04]} Qf4 {[%emt 0:00:15]} 60. Kg2 {[%emt 0:00:31]} Qa4 {[%emt 0:00:20]} 61. Qc4 {[%emt 0:00:26]} Qa5 {[%emt 0:00:24]} 62. Qd3 {[%emt 0:01:13]} Qa4 {[%emt 0:00:40]} 63. Qe4 {[%emt 0:00:00]} Qa2 {[%emt 0:00:00]} 64. Kf2 {[%emt 0:00:25]} Qa1 {[%emt 0:00:17]} 1-0

[Event "Turkish Second League 2019"]
[Site "Konya"]
[Date "2019.07.25"]
[Round "6"]
[White "Ozbek, Busra"]
[Black "Goksu, Beyza"]
[Result "1-0"]
[ECO "A48"]
[WhiteElo "1866"]
[BlackElo "1107"]
[Annotator "NA"]
[PlyCount "75"]
[EventDate "2019.07.22"]
[EventType "team-tourn"]
[EventCountry "TUR"]
[SourceTitle "playchess.com"]
[Source "ChessBase"]
[SourceQuality "1"]
[TimeControl "5400+30"]

1. d4 {[%emt 0:00:30]} Nf6 {[%emt 0:00:30]} 2. Nf3 {[%emt 0:00:00]} g6 {[%emt 0:00:30]} 3. Bg5 {[%emt 0:00:00]} Bg7 {[%emt 0:00:30]} 4. Nbd2 {[%emt 0:00:00]} d6 {[%emt 0:00:30]} 5. e4 {[%emt 0:02:00]} Nbd7 {[%emt 0:01:30]} 6. c3 {[%emt 0:00:00]} O-O {[%emt 0:00:30]} 7. Be2 {[%emt 0:00:00]} b6 {[%emt 0:00:30]} 8. O-O {[%emt 0:01:30]} Bb7 {[%emt 0:01:30]} 9. Qc2 {[%emt 0:00:30]} c5 {[%emt 0:02:30]} 10. d5 {[%emt 0:12:30]} e6 {[%emt 0:08:30]} 11. dxe6 {[%emt 0:02:30]} fxe6 {[%emt 0:00:30]} 12. Qb3 {[%emt 0:00:30]} Qe8 {[%emt 0:02:30]} 13. Bxf6 {[%emt 0:03:30]} Nxf6 {[%emt 0:02:30]} 14. Bb5 {[%emt 0:01:30]} Qe7 {[%emt 0:02:30]} 15. Rfe1 {[%emt 0:01:30]} Kh8 {[%emt 0:03:30]} 16. e5 {[%emt 0:17:30]} dxe5 {[%emt 0:04:30]} 17. Nxe5 {[%emt 0:00:30]} Bd5 {[%emt 0:03:30]} 18. c4 {[%emt 0:00:30]} Bb7 {[%emt 0:00:00]} 19. Qh3 {[%emt 0:02:30]} Nh5 {[%emt 0:08:00]} 20. Qe3 {[%emt 0:24:30]} Nf4 {[%emt 0:14:30]} 21. f3 {[%emt 0:05:30]} Bxe5 {[%emt 0:02:30]} 22. Qxe5+ {[%emt 0:00:30]} Kg8 {[%emt 0:00:30]} 23. Re3 {[%emt 0:03:30]} Rf5 {[%emt 0:02:30]} 24. Qc3 {[%emt 0:00:30]} Rg5 {[%emt 0:14:30]} 25. g3 {[%emt 0:01:28]} Nh5 {[%emt 0:01:30]} 26. Kf2 {[%emt 0:05:00]} Ng7 {[%emt 0:02:30]} 27. Rae1 {[%emt 0:00:29]} Rf8 {[%emt 0:00:30]} 28. Ba4 {[%emt 0:01:00]} Rgf5 {[%emt 0:02:39]} 29. Bc2 {[%emt 0:01:27]} R5f6 {[%emt 0:00:14]} 30. Ke2 {[%emt 0:04:37]} Qf7 {[%emt 0:01:41]} 31. f4 {[%emt 0:00:52]} Nf5 {[%emt 0:01:52]} 32. Re5 {[%emt 0:02:51]} Nd4+ {[%emt 0:00:59]} 33. Kd1 {[%emt 0:00:14]} Nxc2 {[%emt 0:00:36]} 34. Kxc2 {[%emt 0:00:12]} Bc8 {[%emt 0:01:04]} 35. Ne4 {[%emt 0:00:50]} Rf5 {[%emt 0:01:11]} 36. Nd6 {[%emt 0:00:20]} Rxe5 {[%emt 0:00:20]} 37. Nxf7 {[%emt 0:00:15]} Rxe1 {[%emt 0:00:15]} 38. Nh6# {[%emt 0:00:04]} 1-0